fUSD/lending_fUSD_20240426
["ID","MTS","AMOUNT","RATE_DAILY","PERIOD"]
[323603935,1714105841720,-500.0,0.00011548,2]
[323603936,1714105841729,-676.21,0.00011548,2]
[323603937,1714105841738,-1244.89,0.00011548,2]
[323603938,1714105841747,-579.47,0.00011548,2]
[323603939,1714105841756,-612.94,0.00011548,2]
[323603940,1714105841765,-520.25,0.00011548,2]
[323603941,1714105841774,-500.0,0.00011548,2]
[323603942,1714105841784,-760.79,0.00011548,2]
[323603943,1714105841793,-589.9884546,0.00011548,2]
[323603944,1714105841802,-500.0,0.00011548,2]
[323603945,1714105841811,-500.0,0.00011548,2]
[323603946,1714105841820,-500.0,0.00011548,2]
[323603947,1714105841829,-500.0,0.00011548,2]
[323603948,1714105841837,-500.0,0.00011548,2]
[323603949,1714105841846,-2116.87,0.00011548,2]
[323603950,1714105841855,-500.0,0.00011548,2]
[323603951,1714105841864,-1970.56,0.00011548,2]
[323603952,1714105841874,-1337.72,0.00011548,2]
[323603953,1714105841883,-500.0,0.00011548,2]
[323603954,1714105841892,-528.0,0.00011548,2]
[323603955,1714105841901,-1713.0,0.00011548,2]
[323603956,1714105841910,-745.25,0.00011548,2]
[323603957,1714105841919,-644.7,0.00011548,2]
[323603958,1714105841928,-711.93,0.00011548,2]
[323603959,1714105841938,-500.0,0.00011548,2]
[323603960,1714105841947,-500.0,0.00011548,2]
[323603961,1714105841956,-500.0,0.00011548,2]
[323603962,1714105841966,-540.31,0.00011548,2]
[323603963,1714105841975,-582.24,0.00011548,2]
[323603964,1714105841984,-1617.06,0.00011548,2]
[323603965,1714105841993,-2858.03,0.00011548,2]
[323603966,1714105842002,-566.97,0.00011548,2]
[323603967,1714105842011,-1353.79,0.00011548,2]
[323603968,1714105842021,-500.0,0.00011548,2]
[323603969,1714105842031,-646.29,0.00011548,2]
[323603970,1714105842040,-582.37,0.00011548,2]
[323603971,1714105842049,-5189.12,0.00011548,2]
[323603972,1714105842059,-6297.42,0.00011548,2]
[323603973,1714105842068,-696.96,0.00011548,2]
[323603974,1714105842077,-500.0,0.00011548,2]
[323603975,1714105842086,-500.0,0.00011548,2]
[323603976,1714105842096,-500.0,0.00011548,2]
[323603977,1714105842106,-500.0,0.00011548,2]
[323603978,1714105842115,-500.0,0.00011548,2]
[323603979,1714105842125,-500.0,0.00011548,2]
[323603980,1714105842135,-500.0,0.00011548,2]
[323603981,1714105842144,-500.0,0.00011548,2]
[323603982,1714105842154,-500.0,0.00011548,2]
[323603983,1714105842163,-500.0,0.00011548,2]
[323603984,1714105842172,-500.0,0.00011548,2]
[323603985,1714105842181,-500.0,0.00011549,2]
[323603986,1714105842191,-500.0,0.00011549,2]
[323603987,1714105842200,-500.0,0.00011549,2]
[323603988,1714105842209,-500.0,0.00011549,2]
[323603989,1714105842218,-500.0,0.00011549,2]
[323603990,1714105842227,-500.0,0.00011549,2]
[323603991,1714105842236,-500.0,0.00011549,2]
[323603992,1714105842245,-500.0,0.00011549,2]
[323603993,1714105842254,-500.0,0.00011549,2]
[323603994,1714105842263,-500.0,0.00011549,2]
[323603995,1714105842272,-500.0,0.00011549,2]
[323603996,1714105842281,-3666.31,0.00011549,2]
[323603997,1714105842290,-500.0,0.00011549,2]
[323603998,1714105842301,-500.0,0.00011549,2]
[323603999,1714105842310,-717.8,0.00011549,2]
[323604000,1714105842319,-500.0,0.00011549,2]
[323604001,1714105842328,-1005.67,0.00011549,2]
[323604002,1714105842337,-500.0,0.00011549,2]
[323604003,1714105842348,-500.0,0.00011549,2]
[323604004,1714105842357,-500.0,0.00011549,2]
[323604005,1714105842366,-500.0,0.00011549,2]
[323604006,1714105842376,-1167.97,0.00011549,2]
[323604007,1714105842385,-500.0,0.00011549,2]
[323604008,1714105842395,-500.0,0.00011549,2]
[323604009,1714105842405,-2472.88,0.00011549,2]
[323604010,1714105842414,-500.0,0.00011549,2]
[323604011,1714105842424,-500.0,0.00011549,2]
[323604012,1714105842434,-427.86229404,0.00011549,2]
[323604013,1714105842445,-637.24,0.00011549,2]
[323604014,1714105842455,-952.56,0.00011549,2]
[323604015,1714105842466,-540.74,0.00011549,2]
[323604016,1714105842475,-773.96,0.00011549,2]
[323604027,1714105842685,-1602.96,0.00011549,2]
[323604029,1714105842695,-510.78,0.00011549,2]
[323604032,1714105842705,-729.9,0.00011549,2]
[323604033,1714105842714,-500.0,0.00011549,2]
[323604034,1714105842723,-1540.97,0.00011549,2]
[323604035,1714105842732,-500.0,0.00011549,2]
[323604036,1714105842741,-500.0,0.00011549,2]
[323604037,1714105842750,-589.94,0.00011549,2]
[323604038,1714105842759,-500.0,0.00011549,2]
[323604039,1714105842768,-500.0,0.00011549,2]
[323604040,1714105842778,-500.0,0.00011549,2]
[323604042,1714105842787,-1112.94,0.00011549,2]
[323604043,1714105842796,-500.0,0.00011678,2]
[323604044,1714105842805,-500.0,0.00011678,2]
[323604045,1714105842815,-500.0,0.00011678,2]
[323604046,1714105842824,-155.71,0.00011678,2]
[323604047,1714105842833,-500.0,0.00011678,2]
[323604048,1714105842842,-500.0,0.00011678,2]
[323604049,1714105842851,-500.0,0.00011678,2]
[323604050,1714105842860,-500.0,0.00011678,2]
[323604051,1714105842870,-500.0,0.00011678,2]
[323604052,1714105842879,-500.0,0.00011678,2]
[323604053,1714105842888,-274.83284344,0.00011678,2]
[323604054,1714105842897,-540.81,0.00011678,2]
[323604055,1714105842906,-500.0,0.00011678,2]
[323604056,1714105842915,-620.22426908,0.00011678,2]
[323604057,1714105842924,-500.0,0.00011678,2]
[323604058,1714105842933,-500.0,0.00011678,2]
[323604059,1714105842942,-500.0,0.00011678,2]
[323604060,1714105842951,-500.0,0.00011678,2]
[323604061,1714105842960,-500.0,0.00011678,2]
[323604062,1714105842970,-500.0,0.00011678,2]
[323604063,1714105842979,-361.78599564,0.00011678,2]
[323604064,1714105842988,-500.0,0.00011678,2]
[323604065,1714105842997,-500.0,0.00011678,2]
[323604066,1714105843006,-500.0,0.00011678,2]
[323604067,1714105843016,-500.0,0.00011678,2]
[323604068,1714105843026,-500.0,0.00011678,2]
[323604069,1714105843035,-500.0,0.00011678,2]
[323604070,1714105843045,-500.0,0.00011678,2]
[323604071,1714105843054,-500.0,0.00011678,2]
[323604072,1714105843063,-500.0,0.00011678,2]
[323604073,1714105843073,-500.0,0.00011678,2]
[323604074,1714105843083,-452.77457568,0.00011678,2]
[323604075,1714105843093,-500.0,0.00011678,2]
[323604076,1714105843102,-500.0,0.00011679,2]
[323604077,1714105843112,-500.0,0.00011679,2]
[323604078,1714105843121,-327.86770485,0.00011679,2]
[323604079,1714105843131,-500.0,0.00011679,2]
[323604080,1714105843142,-500.0,0.00011679,2]
[323604081,1714105843151,-500.0,0.00011679,2]
[323604082,1714105843161,-641.61,0.00011679,2]
[323604083,1714105843172,-500.0,0.00011679,2]
[323604084,1714105843182,-504.45,0.00011679,2]
[323604085,1714105843192,-500.0,0.00011679,2]
[323604086,1714105843201,-500.0,0.00011679,2]
[323604087,1714105843211,-500.0,0.00011679,2]
[323604088,1714105843221,-500.0,0.00011679,2]
[323604090,1714105843230,-500.0,0.00011679,2]
[323604092,1714105843240,-500.0,0.00011679,2]
[323604093,1714105843250,-500.0,0.00011679,2]
[323604094,1714105843259,-506.53,0.00011679,2]
[323604095,1714105843271,-503.65458547,0.00011679,2]
[323604096,1714105843282,-500.0,0.00011679,2]
[323604097,1714105843292,-307.40595564,0.00011679,2]
[323604098,1714105843304,-531.92,0.00011679,2]
[323604099,1714105843313,-500.0,0.00011679,2]
[323604100,1714105843323,-500.0,0.00011679,2]
[323604101,1714105843332,-500.0,0.00011679,2]
[323604102,1714105843342,-500.0,0.00011679,2]
[323604103,1714105843351,-160.19975145,0.00011679,2]
[323604104,1714105843362,-500.0,0.00011679,2]
[323604105,1714105843372,-500.0,0.00011679,2]
[323604106,1714105843384,-500.0,0.00011679,2]
[323604107,1714105843393,-487.65492902,0.00011679,2]
[323604108,1714105843403,-500.0,0.00011679,2]
[323604109,1714105843412,-500.0,0.00011679,2]
[323604110,1714105843422,-500.0,0.00011679,2]
[323604111,1714105843432,-500.0,0.00011679,2]
[323604112,1714105843443,-500.0,0.00011679,2]
[323604113,1714105843453,-500.0,0.00011679,2]
[323604114,1714105843464,-500.0,0.00011679,2]
[323604115,1714105843473,-500.0,0.00011679,2]
[323604116,1714105843483,-500.0,0.00011679,2]
[323604117,1714105843493,-500.0,0.00011679,2]
[323604118,1714105843502,-500.0,0.00011679,2]
[323604119,1714105843512,-500.0,0.00011679,2]
[323604120,1714105843523,-441.38181939,0.00011679,2]
[323604121,1714105843532,-500.0,0.00011679,2]
[323604122,1714105843542,-704.39,0.0001178,2]
[323604123,1714105843551,-500.0,0.0001178,2]
[323604124,1714105843562,-500.0,0.0001178,2]
[323604125,1714105843573,-470.27,0.0001178,2]
[323604126,1714105843583,-500.0,0.0001178,2]
[323604127,1714105843592,-500.0,0.0001178,2]
[323604128,1714105843602,-500.0,0.0001178,2]
[323604129,1714105843613,-500.0,0.0001178,2]
[323604130,1714105843624,-500.0,0.0001178,2]
[323604131,1714105843633,-500.0,0.0001178,2]
[323604132,1714105843643,-500.0,0.0001178,2]
[323604133,1714105843653,-500.0,0.0001178,2]
[323604134,1714105843662,-500.0,0.0001178,2]
[323604135,1714105843672,-500.0,0.0001178,2]
[323604136,1714105843682,-500.0,0.0001178,2]
[323604137,1714105843691,-500.0,0.0001178,2]
[323604138,1714105843701,-500.0,0.0001178,2]
[323604139,1714105843711,-1036.9458186,0.00011821,2]
[323604140,1714105843722,-500.0,0.00011822,2]
[323604141,1714105843732,-980.37,0.00011822,2]
[323604142,1714105843742,-500.0,0.00011822,2]
[323604143,1714105843751,-500.0,0.00011822,2]
[323604144,1714105843761,-500.0,0.00011822,2]
[323604145,1714105843771,-676.21,0.00011822,2]
[323604146,1714105843781,-1244.89,0.00011822,2]
[323604147,1714105843792,-579.47,0.00011822,2]
[323604148,1714105843804,-612.94,0.00011822,2]
[323604149,1714105843813,-520.25,0.00011822,2]
[323604150,1714105843822,-500.0,0.00011822,2]
[323604151,1714105843833,-760.79,0.00011822,2]
[323604152,1714105843843,-500.0,0.00011822,2]
[323604153,1714105843853,-500.0,0.00011822,2]
[323604154,1714105843862,-500.0,0.00011822,2]
[323604155,1714105843871,-500.0,0.00011822,2]
[323604156,1714105843880,-500.0,0.00011822,2]
[323604157,1714105843890,-2116.87,0.00011822,2]
[323604158,1714105843899,-500.0,0.00011822,2]
[323604159,1714105843908,-1970.56,0.00011822,2]
[323604160,1714105843917,-1337.72,0.00011822,2]
[323604161,1714105843927,-500.0,0.00011822,2]
[323604162,1714105843937,-528.0,0.00011822,2]
[323604163,1714105843946,-1713.0,0.00011822,2]
[323604164,1714105843955,-745.25,0.00011822,2]
[323604165,1714105843964,-644.7,0.00011822,2]
[323604166,1714105843975,-711.93,0.00011822,2]
[323604167,1714105843984,-500.0,0.00011822,2]
[323604168,1714105843995,-500.0,0.00011822,2]
[323604169,1714105844005,-500.0,0.00011822,2]
[323604170,1714105844015,-540.31,0.00011822,2]
[323604171,1714105844025,-582.24,0.00011822,2]
[323604172,1714105844034,-1617.06,0.00011822,2]
[323604173,1714105844044,-2858.03,0.00011822,2]
[323604174,1714105844054,-566.97,0.00011822,2]
[323604175,1714105844065,-1353.79,0.00011822,2]
[323604176,1714105844074,-500.0,0.00011822,2]
[323604177,1714105844085,-646.29,0.00011822,2]
[323604178,1714105844094,-582.37,0.00011822,2]
[323604179,1714105844104,-5189.12,0.00011822,2]
[323604180,1714105844114,-6297.42,0.00011822,2]
[323604181,1714105844126,-696.96,0.00011822,2]
[323604182,1714105844135,-606.77510968,0.00011822,2]
[323604183,1714105844144,-500.0,0.00011822,2]
[323604184,1714105844154,-500.0,0.00011822,2]
[323604185,1714105844163,-500.0,0.00011822,2]
[323604186,1714105844173,-500.0,0.00011822,2]
[323604187,1714105844182,-500.0,0.00011822,2]
[323604188,1714105844191,-500.0,0.00011822,2]
[323604189,1714105844201,-500.0,0.00011822,2]
[323604190,1714105844210,-500.0,0.00011822,2]
[323604191,1714105844220,-551.90567677,0.00011822,2]
[323604192,1714105844230,-500.0,0.00011822,2]
[323604193,1714105844239,-500.0,0.00011823,2]
[323604194,1714105844249,-500.0,0.00011823,2]
[323604195,1714105844258,-500.0,0.00011823,2]
[323604196,1714105844268,-500.0,0.00011823,2]
[323604197,1714105844277,-500.0,0.00011823,2]
[323604198,1714105844288,-500.0,0.00011823,2]
[323604199,1714105844302,-500.0,0.00011823,2]
[323604200,1714105844311,-500.0,0.00011823,2]
[323604201,1714105844320,-500.0,0.00011823,2]
[323604202,1714105844330,-500.0,0.00011823,2]
[323604203,1714105844339,-500.0,0.00011823,2]
[323604204,1714105844348,-3666.31,0.00011823,2]
[323604205,1714105844358,-500.0,0.00011823,2]
[323604206,1714105844367,-513.18907566,0.00011823,2]
[323604207,1714105844378,-717.8,0.00011823,2]
[323604208,1714105844388,-500.0,0.00011823,2]
[323604209,1714105844397,-1005.67,0.00011823,2]
[323604210,1714105844407,-568.97475707,0.00011823,2]
[323604211,1714105844416,-500.0,0.00011823,2]
[323604212,1714105844427,-500.0,0.00011823,2]
[323604213,1714105844438,-500.0,0.00011823,2]
[323604214,1714105844447,-1167.97,0.00011823,2]
[323604215,1714105844456,-500.0,0.00011823,2]
[323604216,1714105844466,-614.00725662,0.00011823,2]
[323604217,1714105844475,-2472.88,0.00011823,2]
[323604218,1714105844484,-500.0,0.00011823,2]
[323604219,1714105844494,-500.0,0.00011823,2]
[323604220,1714105844503,-637.24,0.00011823,2]
[323604221,1714105844512,-952.56,0.00011823,2]
[323604222,1714105844522,-540.74,0.00011823,2]
[323604223,1714105844533,-773.96,0.00011823,2]
[323604224,1714105844545,-1602.96,0.00011823,2]
[323604225,1714105844555,-510.78,0.00011823,2]
[323604226,1714105844565,-729.9,0.00011823,2]
[323604227,1714105844576,-500.0,0.00011823,2]
[323604228,1714105844586,-1540.97,0.00011823,2]
[323604229,1714105844595,-500.0,0.00011823,2]
[323604230,1714105844605,-500.0,0.00011823,2]
[323604231,1714105844614,-589.94,0.00011823,2]
[323604232,1714105844624,-500.0,0.00011823,2]
[323604233,1714105844633,-500.0,0.00011823,2]
[323604234,1714105844642,-500.0,0.00011823,2]
[323604235,1714105844651,-1112.94,0.00011823,2]
[323604236,1714105844661,-437.0,0.0001192,2]
[323604237,1714105844670,-807.0,0.0001192,2]
[323604238,1714105844679,-258.0,0.0001192,2]
[323604239,1714105844688,-1859.0,0.0001192,2]
[323604240,1714105844697,-610.0,0.0001192,2]
[323604241,1714105844706,-1507.186,0.0001192,2]
[323604242,1714105844715,-1475.0,0.0001192,2]
[323604243,1714105844724,-644.035,0.0001192,2]
[323604244,1714105844733,-420.0,0.0001192,2]
[323604245,1714105844742,-214.0,0.0001192,2]
[323604246,1714105844752,-1641.0,0.0001192,2]
[323604247,1714105844761,-443.0,0.0001192,2]
[323604248,1714105844770,-1140.0,0.0001192,2]
[323604249,1714105844779,-2297.0,0.0001192,2]
[323604250,1714105844788,-5896.0,0.0001192,2]
[323604251,1714105844797,-530.398,0.0001192,2]
[323604252,1714105844806,-970.0,0.0001192,2]
[323604253,1714105844815,-462.0,0.0001192,2]
[323604254,1714105844824,-1394.0,0.0001192,2]
[323604255,1714105844833,-23912.319,0.0001192,2]
[323604256,1714105844842,-542.0,0.0001192,2]
[323604257,1714105844851,-309.37,0.00011952,2]
[323604258,1714105844860,-500.0,0.00011952,2]
[323604259,1714105844869,-500.0,0.00011952,2]
[323604260,1714105844879,-155.71,0.00011952,2]
[323604261,1714105844888,-500.0,0.00011952,2]
[323604262,1714105844897,-500.0,0.00011952,2]
[323604263,1714105844907,-604.74820673,0.00011952,2]
[323604264,1714105844916,-385.70768891,0.00011952,2]
[323604265,1714105844926,-500.0,0.00011952,2]
[323604266,1714105844937,-500.0,0.00011952,2]
[323604267,1714105844947,-540.81,0.00011952,2]
[323604268,1714105844957,-500.0,0.00011952,2]
[323604269,1714105844966,-500.0,0.00011952,2]
[323604270,1714105844975,-500.0,0.00011952,2]
[323604271,1714105844984,-500.0,0.00011952,2]
[323604272,1714105844993,-500.0,0.00011952,2]
[323604273,1714105845002,-500.0,0.00011952,2]
[323604274,1714105845014,-500.0,0.00011952,2]
[323604275,1714105845023,-500.0,0.00011952,2]
[323604276,1714105845032,-197.86231512,0.00011952,2]
[323604277,1714105845041,-500.0,0.00011952,2]
[323604278,1714105845050,-500.0,0.00011952,2]
[323604279,1714105845060,-500.0,0.00011952,2]
[323604280,1714105845070,-500.0,0.00011952,2]
[323604281,1714105845079,-500.0,0.00011952,2]
[323604282,1714105845090,-500.0,0.00011952,2]
[323604283,1714105845099,-500.0,0.00011952,2]
[323604284,1714105845108,-500.0,0.00011953,2]
[323604285,1714105845118,-500.0,0.00011953,2]
[323604286,1714105845127,-602.62547788,0.00011953,2]
[323604287,1714105845136,-500.0,0.00011953,2]
[323604288,1714105845146,-500.0,0.00011953,2]
[323604289,1714105845156,-500.0,0.00011953,2]
[323604290,1714105845165,-504.45,0.00011953,2]
[323604291,1714105845174,-500.0,0.00011953,2]
[323604292,1714105845184,-500.0,0.00011953,2]
[323604293,1714105845193,-500.0,0.00011953,2]
[323604294,1714105845203,-500.0,0.00011953,2]
[323604295,1714105845212,-500.0,0.00011953,2]
[323604296,1714105845221,-500.0,0.00011953,2]
[323604297,1714105845231,-500.0,0.00011953,2]
[323604298,1714105845240,-506.53,0.00011953,2]
[323604299,1714105845250,-500.0,0.00011953,2]
[323604300,1714105845260,-531.92,0.00011953,2]
[323604301,1714105845269,-500.0,0.00011953,2]
[323604302,1714105845278,-500.0,0.00011953,2]
[323604303,1714105845288,-500.0,0.00011953,2]
[323604304,1714105845300,-500.0,0.00011953,2]
[323604305,1714105845311,-500.0,0.00011953,2]
[323604306,1714105845320,-500.0,0.00011953,2]
[323604307,1714105845329,-500.0,0.00011953,2]
[323604308,1714105845338,-500.0,0.00011953,2]
[323604309,1714105845348,-500.0,0.00011953,2]
[323604310,1714105845357,-500.0,0.00011953,2]
[323604311,1714105845367,-500.0,0.00011953,2]
[323604312,1714105845377,-500.0,0.00011953,2]
[323604313,1714105845387,-500.0,0.00011953,2]
[323604314,1714105845397,-500.0,0.00011953,2]
[323604315,1714105845407,-500.0,0.00011953,2]
[323604316,1714105845417,-500.0,0.00011953,2]
[323604317,1714105845427,-500.0,0.00011953,2]
[323604318,1714105845437,-387.79950646,0.00011953,2]
[323604319,1714105845448,-500.0,0.00011953,2]
[323604320,1714105845458,-1000.0,0.00011954,2]
[323604321,1714105845468,-186.56296618,0.0001199,2]
[323604322,1714105845479,-2750.0,0.00012,3]
[323604323,1714105845489,-5000.0,0.00012,2]
[323604325,1714105845499,-3071.20810051,0.00012,2]
[323604327,1714105845508,-136239.57698311,0.00012,2]
[323604329,1714105846120,-500.0,0.00011131,2]
[323604330,1714105846132,-161.93901757,0.00012,2]
[323604331,1714105846145,-1288.74314093,0.00012,2]
[323604332,1714105846159,-1411.19664166,0.00012,2]
[323604335,1714105846790,-390.0239562,0.00011,2]
[323604336,1714105847541,-1358.3760438,0.00011,2]
[323604337,1714105847550,-250.68668784,0.00011,2]
[323604338,1714105847593,-249.31331216,0.00011,2]
[323604339,1714105847603,-500.0,0.00011,2]
[323604340,1714105847613,-171.62598621,0.00011,2]
[323604341,1714105848264,-209.83454482,0.00011,2]
[323604342,1714106024187,236.60615508,8.773e-05,2]
[323604343,1714106054726,-162.14721555,8.773e-05,2]
[323604344,1714106208274,-370.12698549,8.773e-05,2]
[323604345,1714106281632,-422.40720694,8.773e-05,2]
[323604346,1714106282185,-614.53861166,8.773e-05,2]
[323604347,1714106360777,-150.0,8.774e-05,2]
[323604348,1714106360937,-150.0,8.774e-05,2]
[323604349,1714106360988,-44.5,8.774e-05,2]
[323604350,1714106394250,-1464.07,9.884e-05,2]
[323604351,1714106451756,-409.78,0.00010102,2]
[323604352,1714106451779,-162.28826086,0.0001048,2]
[323604353,1714106451803,-200.0,0.00010513,2]
[323604354,1714106451826,-2358.27,0.00010525,2]
[323604355,1714106475439,-291.48,0.0001058,2]
[323604356,1714106481369,370.18,8.219e-05,2]
[323604357,1714106481606,370.18,0.0001047,2]
[323604358,1714106533199,-150.79,0.00010595,2]
[323604359,1714106533224,-150.79,0.00010657,2]
[323604360,1714106533247,-150.79,0.00010718,2]
[323604361,1714106533272,-150.79,0.00010779,2]
[323604362,1714106533295,-560.38,0.00010779,2]
[323604363,1714106533317,-150.99,0.00010779,2]
[323604364,1714106533339,-150.99,0.00010779,2]
[323604365,1714106533361,-169.55,0.00010797,2]
[323604366,1714106533384,-150.0,0.00010797,2]
[323604367,1714106533407,-150.0,0.00010797,2]
[323604368,1714106558512,-9177.2556,0.00010798,2]
[323604369,1714106558540,-150.79,0.00010841,2]
[323604370,1714106558564,-31995.8608,0.000109,2]
[323604371,1714106598647,-181.30294417,0.000109,2]
[323604372,1714106598674,-150.79,0.00010902,2]
[323604373,1714106598698,-299.99,0.00010902,2]
[323604374,1714106598723,-158.01,0.00010902,2]
[323604375,1714106598749,-150.79,0.00010964,2]
[323604376,1714106598773,-499.99,0.00010964,2]
[323604377,1714106598798,-900.61,0.00010976,2]
[323604378,1714106598821,-29221.48758778,0.0001099,2]
[323604379,1714106768655,1010.0,0.000251,120]
[323604380,1714106986711,333.16,8.219e-05,2]
[323604384,1714107032553,-333.16,0.0001047,2]
[323604386,1714107032563,-107.12417427,0.00010627,2]
[323604388,1714107032574,-165.72582573,0.00010627,2]
[323604390,1714107032584,-720.48,0.00010678,2]
[323604391,1714107032594,-9183.39509588,0.00010757,7]
[323604392,1714107032604,-19327.98,0.00010758,2]
[323604393,1714107032613,-150.79,0.00010768,2]
[323604394,1714107032622,-150.0,0.00010986,2]
[323604395,1714107032631,-2341.48294417,0.0001099,2]
[323604396,1714107032641,-500.0,0.00011,2]
[323604397,1714107032651,-500.0,0.00011,2]
[323604398,1714107032660,-500.0,0.00011,2]
[323604399,1714107032672,-500.0,0.00011,2]
[323604400,1714107032681,-500.0,0.00011,2]
[323604401,1714107032690,-500.0,0.00011,2]
[323604402,1714107032700,-500.0,0.00011,2]
[323604403,1714107032710,-500.0,0.00011,2]
[323604404,1714107032720,-500.0,0.00011,2]
[323604405,1714107032729,-500.0,0.00011,2]
[323604406,1714107032739,-500.0,0.00011,2]
[323604407,1714107032749,-500.0,0.00011,2]
[323604408,1714107032759,-500.0,0.00011,2]
[323604409,1714107032769,-500.0,0.00011,2]
[323604410,1714107032778,-500.0,0.00011,2]
[323604411,1714107032787,-500.0,0.00011,2]
[323604412,1714107032798,-339.80024855,0.00011,2]
[323604413,1714107032807,-500.0,0.00011,2]
[323604414,1714107032817,-500.0,0.00011,2]
[323604415,1714107032826,-500.0,0.00011,2]
[323604416,1714107032836,-500.0,0.00011,2]
[323604417,1714107032845,-500.0,0.00011,2]
[323604418,1714107032854,-500.0,0.00011,2]
[323604419,1714107032863,-500.0,0.00011,2]
[323604420,1714107032872,-500.0,0.00011,2]
[323604421,1714107032881,-500.0,0.00011,2]
[323604422,1714107032890,-571.74395856,0.00011,2]
[323604423,1714107032899,-500.0,0.00011,2]
[323604424,1714107032909,-500.0,0.00011,2]
[323604425,1714107032918,-500.0,0.00011,2]
[323604426,1714107032929,-500.0,0.00011,2]
[323604427,1714107032939,-500.0,0.00011,2]
[323604428,1714107032948,-500.0,0.00011,2]
[323604429,1714107032958,-501.77714958,0.00011,2]
[323604430,1714107032967,-500.0,0.00011,2]
[323604431,1714107032977,-500.0,0.00011,2]
[323604432,1714107032986,-500.0,0.00011,2]
[323604433,1714107032995,-500.0,0.00011,2]
[323604434,1714107033005,-260.00035421,0.00011,2]
[323604435,1714107033014,-500.0,0.00011,2]
[323604436,1714107033024,-500.0,0.00011,2]
[323604437,1714107033033,-500.0,0.00011,2]
[323604438,1714107033044,-500.0,0.00011,2]
[323604439,1714107033054,-500.0,0.00011,2]
[323604440,1714107033064,-500.0,0.00011,2]
[323604441,1714107033073,-500.0,0.00011,2]
[323604442,1714107033090,-500.0,0.00011,2]
[323604443,1714107033103,-500.0,0.00011,2]
[323604444,1714107033113,-500.0,0.00011,2]
[323604445,1714107033122,-183.35087693,0.00011,2]
[323604446,1714107033131,-500.0,0.00011,2]
[323604447,1714107033140,-500.0,0.00011,2]
[323604448,1714107033149,-500.0,0.00011,2]
[323604449,1714107033158,-500.0,0.00011,2]
[323604450,1714107033168,-500.0,0.00011,2]
[323604451,1714107033177,-500.0,0.00011,2]
[323604452,1714107033187,-500.0,0.00011,2]
[323604453,1714107033197,-500.0,0.00011,2]
[323604454,1714107033206,-500.0,0.00011,2]
[323604455,1714107033216,-500.0,0.00011,2]
[323604456,1714107033225,-500.0,0.00011,2]
[323604457,1714107033234,-500.0,0.00011,2]
[323604458,1714107033243,-500.0,0.00011,2]
[323604459,1714107033253,-500.0,0.00011,2]
[323604460,1714107033263,-500.0,0.00011,2]
[323604461,1714107033272,-500.0,0.00011,2]